bitfinex/quotes_SOLUSD_20260305
["timestamp","ask_amount","ask_price","bid_price","bid_amount"]
[1772728393050,3.28678325,88.735,88.688,3.34431329]
[1772728393427,3.28678325,88.735,88.687,0.14216157]
[1772728393428,3.28678325,88.747,88.692,3.34431329]
[1772728393629,11.26912934,88.738,88.695,3.34431329]
[1772728393927,11.26912934,88.738,88.677,3.34431329]
[1772728393928,3.28678325,88.737,88.677,3.34431329]
[1772728394128,3.28678325,88.731,88.677,3.34431329]
[1772728394331,3.28678325,88.731,88.678,3.34431329]
[1772728394553,3.28678325,88.725,88.678,3.34431329]
[1772728394849,3.28678325,88.73,88.678,3.34431329]
[1772728395147,21.15888642,88.739,88.687,3.34431329]
[1772728395349,3.28678325,88.738,88.694,3.34431329]
[1772728395646,3.28678325,88.737,88.694,3.34431329]
[1772728396545,3.28678325,88.737,88.691,3.34431329]
[1772728397544,3.28678325,88.733,88.692,11.27497406]
[1772728397748,3.28678325,88.731,88.682,11.27624546]
[1772728398328,3.28678325,88.729,88.681,3.34431329]
[1772728398528,3.28678325,88.721,88.678,11.27669995]
[1772728398725,3.28678325,88.711,88.664,11.27853469]
[1772728398939,3.28678325,88.711,88.665,3.38693148]
[1772728399852,3.50550617,88.709,88.667,3.38693148]
[1772728400570,3.50550617,88.709,88.666,11.27828028]
[1772728400571,3.50550617,88.709,88.653,3.69383402]
[1772728400735,3.50550617,88.699,88.644,11.28099519]
[1772728401750,3.50550617,88.697,88.645,3.38693148]
[1772728401934,3.50550617,88.697,88.643,0.60193754]
[1772728401935,3.50550617,88.689,88.643,0.60193754]
[1772728402134,3.50550617,88.679,88.643,0.60193754]
[1772728403147,3.50550617,88.679,88.643,11.88308511]
[1772728403541,3.50550617,88.679,88.643,0.60193754]
[1772728403734,3.50550617,88.677,88.643,0.60193754]
[1772728404361,3.50550617,88.677,88.635,3.38693148]
[1772728404856,3.50550617,88.675,88.637,11.28188785]
[1772728405661,3.50550617,88.675,88.638,3.38693148]
[1772728406654,3.46070375,88.684,88.638,3.38693148]
[1772728406848,3.46070375,88.684,88.64,3.45376483]
[1772728407531,11.27586401,88.685,88.64,3.45376483]
[1772728407735,11.27370296,88.702,88.643,3.45376483]
[1772728407948,11.27370296,88.702,88.647,3.45376483]
[1772728407949,3.46070375,88.701,88.647,3.45376483]
[1772728408528,3.46070375,88.701,88.643,61.9]
[1772728408529,3.46070375,88.693,88.643,61.9]
[1772728408732,3.46070375,88.679,88.633,11.28235341]
[1772728409045,3.46070375,88.677,88.633,11.28235341]
[1772728409941,3.46070375,88.675,88.633,11.28235341]
[1772728410149,3.46070375,88.675,88.629,15.17686757]
[1772728410355,3.46070375,88.675,88.63,3.45376483]
[1772728411941,3.46070375,88.675,88.632,3.45376483]
[1772728412537,14.73794254,88.675,88.632,3.45376483]
[1772728412747,3.46070375,88.674,88.632,3.45376483]
[1772728413564,3.46070375,88.693,88.636,3.45376483]
[1772728413866,3.46070375,88.693,88.638,3.45376483]
[1772728415262,223.77304987,88.74,88.638,3.45376483]
[1772728415472,3.46070375,88.726,88.643,3.45376483]
[1772728415767,3.46070375,88.724,88.657,3.45376483]
[1772728415956,3.46070375,88.724,88.667,3.45376483]
[1772728416139,3.46070375,88.724,88.671,3.45376483]
[1772728416338,3.46070375,88.724,88.677,3.45376483]
[1772728417673,0.28432314,88.74,88.679,3.45376483]
[1772728417674,3.46070375,88.722,88.679,3.45376483]
[1772728418740,3.46070375,88.731,88.679,3.45376483]
[1772728419862,3.46070375,88.729,88.681,3.45376483]
[1772728420952,3.46070375,88.729,88.656,3.45376483]
[1772728421147,3.46070375,88.709,88.656,3.45376483]
[1772728421346,3.46070375,88.697,88.647,3.45376483]
[1772728421550,3.46070375,88.691,88.647,3.45376483]
[1772728421867,3.46070375,88.689,88.648,14.73433517]
[1772728422080,3.46070375,88.689,88.648,3.45376483]
[1772728422369,3.46070375,88.689,88.648,11.28057034]
[1772728422777,3.46070375,88.689,88.649,3.45376483]
[1772728422950,3.46070375,88.699,88.649,3.45376483]
[1772728424464,3.46070375,88.697,88.651,3.45376483]
[1772728425161,11.27369117,88.703,88.651,3.45376483]
[1772728425368,3.46070375,88.702,88.651,3.45376483]
[1772728425567,3.46070375,88.72,88.653,3.45376483]
[1772728425747,3.46070375,88.72,88.658,3.45376483]
[1772728425953,3.74502689,88.719,88.658,3.45376483]
[1772728426451,3.74502689,88.717,88.66,3.45376483]
[1772728428268,3.46070375,88.717,88.66,3.45376483]
[1772728429155,3.51836658,88.715,88.662,3.4826633]
[1772728429750,3.51836658,88.713,88.663,61.9]
[1772728429952,3.80268972,88.709,88.661,11.27891632]
[1772728430170,11.49710425,88.7,88.656,11.27952056]
[1772728430378,3.51836658,88.699,88.656,11.27952056]
[1772728430978,3.51836658,88.689,88.644,3.4826633]
[1772728431152,3.51836658,88.687,88.645,11.28095211]
[1772728431963,3.51836658,88.687,88.646,3.4826633]
[1772728432866,3.51836658,88.687,88.645,11.28095211]
[1772728433271,0.28432314,88.686,88.637,3.4826633]
[1772728433578,3.51836658,88.679,88.63,11.28286133]
[1772728433956,3.51836658,88.679,88.63,14.76552463]
[1772728435084,3.51836658,88.679,88.63,11.28286133]
[1772728435376,3.51836658,88.679,88.631,3.4826633]
[1772728435676,3.51836658,88.669,88.619,3.4826633]
[1772728435973,3.51836658,88.677,88.63,3.4826633]
[1772728436176,3.51836658,88.671,88.63,3.4826633]
[1772728436559,3.51836658,88.671,88.629,0.44011789]
[1772728437380,39.46863933,88.678,88.629,0.44011789]
[1772728437381,3.51836658,88.667,88.629,0.44011789]
[1772728437682,3.51836658,88.659,88.63,11.28286133]
[1772728437875,11.27904353,88.66,88.631,3.4826633]
[1772728438266,3.51836658,88.659,88.631,3.4826633]
[1772728438469,3.51836658,88.659,88.629,0.44011789]
[1772728438958,3.51836658,88.659,88.63,11.28286133]
[1772728439367,3.51836658,88.659,88.629,0.44011789]
[1772728439572,3.51836658,88.659,88.63,11.28286133]
[1772728440187,14.79766455,88.658,88.63,11.28286133]
[1772728440484,11.27881313,88.662,88.631,3.4826633]
[1772728440665,3.51836658,88.678,88.632,61.9]
[1772728440867,3.51836658,88.678,88.63,39.49001466]
[1772728440868,3.51836658,88.702,88.634,3.4826633]
[1772728441057,3.51836658,88.72,88.641,0.28432314]
[1772728441262,3.51836658,88.718,88.656,3.4826633]
[1772728441480,3.51836658,88.718,88.658,3.4826633]
[1772728442066,3.51836658,88.716,88.66,3.4826633]
[1772728442667,3.51836658,88.716,88.652,11.28001154]
[1772728442869,0.14216157,88.703,88.652,14.76267484]
[1772728443070,3.51836658,88.69,88.652,14.76267484]
[1772728443368,3.51836658,88.688,88.622,3.4826633]
[1772728443571,3.51836658,88.667,88.611,3.4826633]
[1772728443764,11.5086579,88.67,88.611,3.4826633]
[1772728443765,3.51836658,88.655,88.611,3.4826633]
[1772728444082,3.51836658,88.651,88.611,3.4826633]
[1772728444463,3.51836658,88.651,88.582,3.4826633]
[1772728444774,3.51836658,88.651,88.581,11.28910262]
[1772728444775,3.51836658,88.627,88.581,3.4826633]
[1772728444976,3.51836658,88.627,88.581,42.99452249]
[1772728445184,3.51836658,88.627,88.582,3.4826633]
[1772728445368,3.51836658,88.649,88.582,3.4826633]
[1772728445574,0.14216157,88.65,88.582,3.4826633]
[1772728445575,3.51836658,88.641,88.582,3.4826633]
[1772728446487,3.51836658,88.639,88.584,3.4826633]
[1772728446682,3.51836658,88.637,88.584,3.4826633]
[1772728446894,0.14216157,88.638,88.55,15.55256736]
[1772728446895,3.51836658,88.629,88.581,3.4826633]
[1772728447081,3.51836658,88.629,88.582,3.4826633]
[1772728447875,51.13637902,88.64,88.558,28.22998085]
[1772728447876,3.51836658,88.625,88.558,28.22998085]
[1772728448075,0.14216157,88.62,88.562,3.4826633]
[1772728448393,3.51836658,88.611,88.563,11.29130508]
[1772728448763,3.51836658,88.611,88.577,11.28957081]
[1772728449567,3.51836658,88.623,88.576,11.28969447]
[1772728449766,3.51836658,88.621,88.58,11.48919651]
[1772728449989,3.51836658,88.621,88.58,14.97185981]
[1772728450189,3.51836658,88.621,88.581,3.4826633]
[1772728450393,3.51836658,88.619,88.58,0.2]
[1772728451081,11.28158844,88.64,88.582,3.4826633]
[1772728451285,11.28158844,88.64,88.584,3.4826633]
[1772728451594,3.51836658,88.639,88.588,3.4826633]
[1772728451791,3.51836658,88.633,88.588,3.4826633]
[1772728452009,3.51836658,88.631,88.588,3.4826633]
[1772728452290,3.51836658,88.629,88.588,3.4826633]
[1772728452470,11.28311594,88.628,88.59,3.4826633]
[1772728453373,11.28171572,88.639,88.59,3.4826633]
[1772728453574,14.8000823,88.639,88.59,3.4826633]
[1772728453780,3.51836658,88.638,88.59,3.4826633]
[1772728454688,3.51836658,88.636,88.592,3.4826633]
[1772728456994,3.51836658,88.634,88.594,3.4826633]
[1772728457395,39.48778698,88.635,88.594,3.4826633]
[1772728457582,11.28222485,88.635,88.596,3.4826633]
[1772728458498,14.80059143,88.635,88.596,3.4826633]
[1772728458689,3.51836658,88.634,88.596,3.4826633]
[1772728458896,0.32,89.261,88.597,3.32233653]
[1772728458897,3.51836658,88.632,88.597,3.32233653]
[1772728459199,11.28247943,88.633,88.587,3.32233653]
[1772728459200,3.23659519,88.63,88.587,3.32233653]
[1772728459786,39.48867802,88.633,88.587,3.32233653]
[1772728460078,3.23659519,88.632,88.587,3.32233653]
[1772728461583,3.23659519,88.63,88.588,11.28821059]
[1772728462575,3.23659519,88.63,88.58,0.2]
[1772728462576,3.23659519,88.63,88.583,11.28874363]
[1772728462777,3.23659519,88.63,88.583,14.61108016]
[1772728463193,3.23659519,88.63,88.58,0.2]
[1772728463194,0.28432314,88.623,88.58,0.2]
[1772728463396,11.5086579,88.63,88.58,0.2]
[1772728463397,3.23659519,88.62,88.58,0.2]
[1772728463694,3.23659519,88.618,88.58,0.2]
[1772728464097,3.23659519,88.618,88.58,3.52233653]
[1772728464301,3.23659519,88.618,88.58,0.2]
[1772728464982,3.23659519,88.614,88.57,0.2]
[1772728465302,3.23659519,88.6,88.57,11.49048891]
[1772728465596,11.2868091,88.599,88.571,3.32233653]
[1772728465797,3.23659519,88.609,88.571,3.32233653]
[1772728465979,11.28566269,88.608,88.571,3.32233653]
[1772728466577,3.31682892,88.625,88.571,3.32233653]
[1772728466995,3.31682892,88.621,88.571,3.32233653]
[1772728467803,3.31682892,88.619,88.573,3.38526429]
[1772728467991,45.10510568,88.682,88.573,3.38526429]
[1772728467992,11.28311594,88.628,88.574,0.28432314]
[1772728468197,11.28311594,88.628,88.575,3.38526429]
[1772728468394,3.31682892,88.627,88.577,3.38526429]
[1772728469102,3.31682892,88.627,88.572,39.51587409]
[1772728469103,3.31682892,88.621,88.572,11.29024974]
[1772728469306,3.31682892,88.621,88.573,3.38526429]
[1772728469685,3.31682892,88.627,88.574,39.51498181]
[1772728469888,3.31682892,88.627,88.577,3.38526429]
[1772728472389,28.2042893,88.639,88.58,0.28432314]
[1772728472592,3.31682892,88.64,88.584,3.38526429]
[1772728472793,3.31682892,88.64,88.588,3.38526429]
[1772728472992,3.31682892,88.64,88.581,3.69383402]
[1772728472993,11.281843,88.638,88.59,3.38526429]
[1772728473193,11.28057034,88.648,88.593,0.28432314]
[1772728473420,3.31682892,88.647,88.587,3.38526429]
[1772728473716,39.4819962,88.648,88.587,3.38526429]
[1772728473717,3.31682892,88.641,88.587,3.38526429]
[1772728473890,3.31682892,88.639,88.587,3.38526429]
[1772728474207,3.31682892,88.637,88.587,3.38526429]
[1772728474413,3.31682892,88.629,88.588,11.28821059]
[1772728474708,3.31682892,88.629,88.589,3.38526429]
[1772728476390,3.31682892,88.659,88.591,3.69383402]
[1772728476588,3.31682892,88.658,88.594,3.38526429]
[1772728476787,3.31682892,88.658,88.608,3.38526429]
[1772728477194,11.27844508,88.665,88.616,3.38526429]
[1772728477398,3.31682892,88.664,88.618,3.38526429]
[1772728478399,3.31682892,88.655,88.593,3.38526429]
[1772728478606,3.31682892,88.651,88.593,3.38526429]
[1772728479413,3.31682892,88.651,88.595,3.38526429]
[1772728479592,3.31682892,88.651,88.597,3.38526429]
[1772728480410,3.31682892,88.649,88.601,3.38526429]
[1772728480914,3.31682892,88.658,88.604,0.28432314]
[1772728481215,3.31682892,88.658,88.6,39.50338599]
[1772728481216,3.31682892,88.658,88.607,3.38526429]
[1772728482418,3.31682892,88.658,88.609,3.38526429]
[1772728482720,3.31682892,88.658,88.611,3.38526429]
[1772728482721,11.2794252,88.657,88.611,3.38526429]
[1772728483016,11.2794252,88.657,88.613,3.38526429]
[1772728484289,14.60938995,88.657,88.613,3.38526429]
[1772728484596,3.32996475,88.656,88.613,3.38526429]
[1772728484791,3.32996475,88.654,88.615,3.34538767]
[1772728484990,3.32996475,88.654,88.617,3.34538767]
[1772728485197,3.32996475,88.654,88.614,11.28489854]
[1772728485198,3.32996475,88.654,88.619,3.34538767]
[1772728485815,3.32996475,88.664,88.619,3.34538767]
[1772728486103,3.32996475,88.663,88.619,3.34538767]
[1772728487901,3.18597791,88.661,88.621,3.46709582]
[1772728489310,3.18597791,88.661,88.623,3.43654688]
[1772728489901,3.46189586,88.659,88.625,3.43654688]
[1772728490795,11.27904353,88.66,88.624,11.2836252]
[1772728490796,11.27904353,88.66,88.626,61.9]
[1772728491003,11.27904353,88.66,88.628,3.43654688]
[1772728491194,14.73903146,88.675,88.628,3.43654688]
[1772728491434,11.27653491,88.68,88.63,3.43654688]
[1772728491922,11.27653491,88.68,88.624,39.4926882]
[1772728491923,11.27653491,88.68,88.634,3.43654688]
[1772728492111,3.46189586,88.694,88.635,0.28432314]
[1772728492314,3.46189586,88.694,88.631,39.48956911]
[1772728492315,3.46189586,88.694,88.638,3.43654688]
[1772728492723,3.46189586,88.694,88.648,3.33501092]
[1772728492919,11.6086579,88.72,88.65,3.33501092]
[1772728492920,3.21419415,88.7,88.65,3.33501092]
[1772728493223,0.1,88.72,88.665,0.14216157]
[1772728493517,0.1,88.72,88.635,1.12822248]
[1772728493518,0.1,88.72,88.678,3.33501092]
[1772728493720,0.1,88.72,88.677,0.28432314]
[1772728493721,11.26912934,88.738,88.682,3.33501092]
[1772728493898,11.26912934,88.738,88.69,3.33501092]
[1772728494105,21.08629732,88.739,88.693,3.33501092]
[1772728494317,17.87210317,88.739,88.697,3.33501092]
[1772728494508,17.87210317,88.739,88.692,3.69383402]
[1772728494509,3.21419415,88.76,88.705,0.14216157]
[1772728494716,3.21419415,88.76,88.718,3.33501092]
[1772728495026,14.48065018,88.76,88.718,3.33501092]
[1772728495228,3.21419415,88.76,88.718,3.33501092]
[1772728495534,3.21419415,88.769,88.728,3.33501092]
[1772728495901,28.15769569,88.786,88.692,3.69383402]
[1772728495902,28.15769569,88.786,88.73,3.33501092]
[1772728496102,3.21419415,88.785,88.73,3.33501092]
[1772728496324,3.21419415,88.779,88.73,3.33501092]
[1772728496627,3.21419415,88.779,88.729,11.2702724]
[1772728496825,3.21419415,88.779,88.703,31.87752118]
[1772728497007,3.21419415,88.771,88.711,3.33501092]
[1772728498101,3.32201034,88.769,88.713,3.35490721]
[1772728498325,3.32201034,88.761,88.713,3.35490721]
[1772728500214,3.32201034,88.759,88.715,3.35490721]
[1772728500409,3.32201034,88.759,88.698,3.35490721]
[1772728500614,3.32201034,88.759,88.7,3.35490721]
[1772728500918,3.32201034,88.759,88.708,3.35490721]
[1772728501425,3.32201034,88.759,88.699,3.69383402]
[1772728501426,14.58695046,88.771,88.718,3.35490721]
[1772728501629,3.32201034,88.779,88.728,3.35490721]
[1772728502220,3.32201034,88.777,88.73,3.35490721]
[1772728502537,39.42418166,88.778,88.682,3.35490721]
[1772728502538,0.28432314,88.768,88.682,3.35490721]
[1772728502747,3.32201034,88.761,88.685,3.35490721]
[1772728503027,3.32201034,88.751,88.687,3.35490721]
[1772728504218,3.32201034,88.747,88.689,3.35490721]
[1772728504415,50.92233504,88.75,88.689,3.35490721]
[1772728504416,3.32201034,88.741,88.689,3.35490721]
[1772728504727,50.92233504,88.75,88.679,3.35490721]
[1772728504728,3.32201034,88.729,88.679,3.35490721]
[1772728505055,3.32201034,88.727,88.657,3.35490721]
[1772728505209,3.32201034,88.721,88.657,3.35490721]
[1772728505410,3.32201034,88.721,88.66,3.35490721]
[1772728506212,3.37516503,88.709,88.661,3.51237695]
[1772728507710,3.37516503,88.709,88.655,50.74]
[1772728507920,3.37516503,88.707,88.651,3.51237695]
[1772728508131,3.37516503,88.699,88.648,11.28048798]
[1772728508324,39.45973978,88.698,88.644,3.46901012]
[1772728508527,3.36313015,88.697,88.644,3.46901012]
[1772728509538,0.14216157,88.688,88.634,14.75129171]
[1772728509834,11.48571533,88.69,88.634,3.46901012]
[1772728509835,3.36313015,88.681,88.634,3.46901012]
[1772728510346,3.36313015,88.679,88.634,3.46901012]
[1772728511426,3.36313015,88.679,88.628,28.20759119]
[1772728511427,3.36313015,88.688,88.636,3.46901012]
[1772728512434,3.36313015,88.686,88.636,3.46901012]
[1772728512732,3.36313015,88.686,88.625,3.46901012]
[1772728513642,3.36313015,88.679,88.625,3.46901012]
[1772728513817,3.36313015,88.679,88.62,3.46901012]
[1772728514425,3.36313015,88.677,88.62,3.46901012]
[1772728514638,3.36313015,88.677,88.622,3.46901012]
[1772728515532,3.36313015,88.671,88.622,3.46901012]
[1772728516330,3.36313015,88.671,88.624,3.46901012]
[1772728516534,11.27675409,88.678,88.628,3.46901012]
[1772728517345,3.36313015,88.759,88.636,7.16284414]
[1772728517632,11.48571533,88.72,88.649,3.46901012]
[1772728517838,3.36313015,88.719,88.649,3.46901012]
[1772728518235,0.28432314,88.714,88.649,3.46901012]
[1772728518426,3.36313015,88.713,88.649,3.46901012]
[1772728518626,3.36313015,88.711,88.654,3.46901012]
[1772728518936,3.36313015,88.711,88.655,3.48500529]
[1772728519331,3.36313015,88.711,88.656,3.48500529]
[1772728520639,39.73783561,88.712,88.655,61.9]
[1772728520640,3.1864081,88.709,88.658,3.48500529]
[1772728521241,11.27179683,88.717,88.669,3.48500529]
[1772728521445,3.1864081,88.716,88.669,3.48500529]
[1772728521938,11.27179683,88.717,88.669,3.48500529]
[1772728522142,60.02995285,88.754,88.661,3.69383402]
[1772728522143,3.1864081,88.749,88.675,3.48500529]
[1772728522326,3.1864081,88.761,88.687,3.48500529]
[1772728522520,3.1864081,88.761,88.699,3.48500529]
[1772728522721,3.1864081,88.759,88.704,3.76932843]
[1772728523345,3.1864081,88.759,88.704,3.62716686]
[1772728524741,11.26633618,88.76,88.705,11.27332168]
[1772728524742,3.1864081,88.757,88.705,11.27332168]
[1772728524955,3.1864081,88.757,88.708,3.48500529]
[1772728525122,11.2660628,88.763,88.708,3.48500529]
[1772728525322,3.1864081,88.767,88.708,3.48500529]
[1772728525323,3.1864081,88.767,88.712,3.48500529]
[1772728525625,3.1864081,88.767,88.707,0.14216157]
[1772728525626,3.1864081,88.749,88.69,3.48500529]
[1772728525929,3.1864081,88.729,88.672,3.48500529]
[1772728527036,3.3839968,88.727,88.674,3.3912313]
[1772728528140,11.27039942,88.728,88.676,3.3912313]
[1772728528331,3.3839968,88.736,88.688,3.3912313]
[1772728528526,3.3839968,88.742,88.688,3.3912313]
[1772728529448,3.3839968,88.742,88.696,0.14216157]
[1772728529624,3.3839968,88.742,88.699,3.3912313]
[1772728530154,11.26779826,88.749,88.699,3.3912313]
[1772728531437,11.26779826,88.749,88.701,3.3912313]
[1772728531636,3.3839968,88.748,88.701,3.3912313]
[1772728533537,3.3839968,88.746,88.703,3.3912313]
[1772728533858,3.3839968,88.746,88.702,11.27370296]
[1772728534157,3.3839968,88.746,88.703,3.3912313]
[1772728534640,3.3839968,88.746,88.702,11.27370296]
[1772728534839,0.28432314,88.728,88.676,3.3912313]
[1772728535069,3.3839968,88.709,88.647,3.3912313]
[1772728535353,3.3839968,88.699,88.649,3.3912313]
[1772728535555,3.3839968,88.697,88.651,3.3912313]
[1772728536235,3.3839968,88.697,88.65,39.48110546]
[1772728536236,3.3839968,88.729,88.656,3.3912313]
[1772728536430,3.3839968,88.728,88.666,3.3912313]
[1772728536737,3.3839968,88.728,88.678,3.3912313]
[1772728537242,3.3839968,88.741,88.678,3.3912313]
[1772728537450,3.69383402,88.764,88.654,1.12798068]
[1772728537451,3.3839968,88.738,88.689,3.3912313]
[1772728537655,3.3839968,88.738,88.655,3.69383402]
[1772728537854,3.3839968,88.738,88.658,3.3912313]
[1772728538034,0.28432314,88.735,88.668,3.3912313]
[1772728538238,3.3839968,88.732,88.668,3.3912313]
[1772728538756,11.48571533,88.71,88.658,3.3912313]
[1772728539069,185.93853884,88.739,88.658,3.3912313]
[1772728539070,3.3839968,88.729,88.658,3.3912313]
[1772728539355,3.3839968,88.729,88.668,3.3912313]
[1772728539662,3.3839968,88.727,88.678,3.3912313]
[1772728541352,0.28432314,88.751,88.673,3.69383402]
[1772728541353,3.3839968,88.748,88.688,3.3912313]
[1772728541657,3.3839968,88.76,88.702,3.3912313]
[1772728541854,3.3839968,88.76,88.708,3.3912313]
[1772728542157,3.3839968,88.76,88.707,0.28432314]
[1772728542158,3.3839968,88.77,88.714,3.3912313]
[1772728542344,3.3839968,88.768,88.728,3.3912313]
[1772728543050,3.3839968,88.768,88.714,3.3912313]
[1772728543442,3.3839968,88.759,88.692,3.3912313]
[1772728543763,3.3839968,88.749,88.692,3.3912313]
[1772728543951,3.3839968,88.743,88.691,14.66633249]
[1772728544558,3.3839968,88.743,88.692,3.3912313]
[1772728545646,3.3839968,88.741,88.694,3.3912313]
[1772728545855,3.3839968,88.741,88.693,11.27484694]
[1772728546042,3.3839968,88.741,88.694,3.3912313]
[1772728547059,11.26862139,88.742,88.694,3.3912313]
[1772728547246,3.3839968,88.741,88.694,3.3912313]
[1772728547656,3.3839968,88.739,88.696,3.3912313]
[1772728547964,3.3839968,88.739,88.684,3.3912313]
[1772728548660,3.3839968,88.739,88.653,1.12799341]
[1772728548661,3.3839968,88.709,88.655,3.3912313]
[1772728549655,3.50938953,88.707,88.657,3.26057814]
[1772728549958,14.78174421,88.713,88.664,3.26057814]
[1772728550160,3.50938953,88.712,88.664,3.26057814]
[1772728550967,3.50938953,88.709,88.656,11.27955242]
[1772728551358,3.50938953,88.707,88.656,11.27955242]
[1772728551662,39.45796036,88.702,88.654,11.27980688]
[1772728551867,3.50938953,88.701,88.654,11.27980688]
[1772728552251,3.50938953,88.699,88.611,3.26057814]
[1772728552463,3.50938953,88.669,88.612,3.26057814]
[1772728553764,3.50938953,88.667,88.614,3.26057814]
[1772728555349,3.50938953,88.665,88.614,3.26057814]
[1772728555549,3.50938953,88.663,88.614,3.26057814]
[1772728556867,3.50938953,88.661,88.616,3.26057814]
[1772728558265,0.28432314,88.681,88.615,39.4966992]
[1772728558266,14.78677949,88.673,88.618,3.26057814]
[1772728558468,14.78677949,88.673,88.628,3.26057814]
[1772728559152,14.78677949,88.673,88.63,3.26057814]
[1772728560149,14.78677949,88.673,88.62,0.28432314]
[1772728560150,11.27738996,88.673,88.632,3.26057814]
[1772728560355,3.79371267,88.696,88.634,3.26057814]
[1772728560554,3.79371267,88.696,88.636,3.26057814]
[1772728560757,3.79371267,88.696,88.635,61.9]
[1772728560758,3.50938953,88.679,88.635,56.66547877]
[1772728560960,3.50938953,88.675,88.627,39.49135138]
[1772728561174,3.50938953,88.673,88.628,56.66547877]
[1772728561361,3.50938953,88.673,88.629,3.26057814]
[1772728562752,3.50938953,88.671,88.628,56.66547877]
[1772728562973,3.50938953,88.667,88.628,56.30681129]
[1772728563170,3.50938953,88.659,88.61,14.54596075]
[1772728563369,3.50938953,88.659,88.611,3.26057814]
[1772728564671,3.50938953,88.671,88.611,3.26057814]
[1772728564856,11.27777151,88.67,88.613,3.26057814]
[1772728565051,11.27777151,88.67,88.615,3.26057814]
[1772728565375,11.27281335,88.709,88.635,3.54490128]
[1772728565753,3.50938953,88.723,88.648,3.26057814]
[1772728565956,3.50938953,88.745,88.662,3.26057814]
[1772728566156,3.50938953,88.745,88.67,3.26057814]
[1772728566389,3.50938953,88.745,88.687,0.28432314]
[1772728566673,3.50938953,88.745,88.688,3.26057814]
[1772728566981,11.51564423,88.75,88.69,3.26057814]
[1772728566982,3.50938953,88.741,88.69,3.26057814]
[1772728567874,3.50938953,88.741,88.67,0.28432314]
[1772728567875,3.50938953,88.715,88.65,3.26057814]
[1772728568081,3.50938953,88.713,88.657,3.26057814]
[1772728568249,3.50938953,88.724,88.657,3.26057814]
[1772728568453,3.50938953,88.724,88.66,3.26057814]
[1772728568654,3.50938953,88.741,88.671,0.14216157]
[1772728568855,3.50938953,88.741,88.678,3.26057814]
[1772728569278,3.50938953,88.739,88.68,3.26057814]
[1772728569871,3.50938953,88.739,88.685,3.26057814]
[1772728570054,3.50938953,88.739,88.684,0.28432314]
[1772728570055,3.50938953,88.739,88.689,3.26057814]
[1772728571385,3.50938953,88.749,88.691,3.26057814]
[1772728572774,0.28432314,88.748,88.691,3.26057814]
[1772728572959,3.50938953,88.747,88.691,3.26057814]
[1772728573159,3.50938953,88.743,88.691,3.26057814]
[1772728573571,3.50938953,88.741,88.693,3.26057814]
[1772728573987,3.50938953,88.739,88.674,3.26057814]
[1772728574681,3.50938953,88.739,88.679,3.26057814]
[1772728575662,3.50938953,88.737,88.681,3.26057814]
[1772728576680,3.50938953,88.737,88.683,3.26057814]
[1772728577468,3.50938953,88.747,88.689,3.26057814]
[1772728577669,3.50938953,88.747,88.68,84.57374829]
[1772728577670,3.50938953,88.768,88.696,3.26057814]
[1772728577880,0.28432314,88.764,88.698,3.26057814]
[1772728578075,3.79371267,88.763,88.7,3.26057814]
[1772728578274,3.50938953,88.763,88.703,3.26057814]
[1772728578485,3.50938953,88.763,88.709,3.26057814]
[1772728580065,11.26608233,88.762,88.711,3.36634173]
[1772728580874,11.26392502,88.779,88.714,3.36634173]
[1772728581075,14.72266754,88.779,88.716,3.36634173]
[1772728581384,14.72266754,88.779,88.728,0.28432314]
[1772728581574,11.26392502,88.779,88.729,3.36634173]
[1772728582080,28.1570861,88.788,88.72,3.97815716]
[1772728582081,3.45874252,88.787,88.731,3.36634173]
[1772728583281,3.45874252,88.787,88.733,3.36634173]
[1772728584062,11.26278325,88.788,88.734,0.28432314]
[1772728584262,5.88087268,88.793,88.734,0.28432314]
[1772728584263,5.88087268,88.793,88.739,3.36634173]
[1772728584464,3.45874252,88.792,88.739,3.36634173]
[1772728585465,0.2,88.8,88.739,3.36634173]
[1772728585670,11.26138807,88.799,88.739,3.36634173]
[1772728585869,3.45874252,88.798,88.739,3.36634173]
[1772728586287,3.45874252,88.796,88.746,3.18879623]
[1772728586490,3.45874252,88.796,88.743,3.69383402]
[1772728586491,3.45874252,88.796,88.748,3.18879623]
[1772728588270,11.26189537,88.795,88.749,11.26773259]
[1772728588585,3.38693681,88.794,88.75,3.18879623]
[1772728590177,3.38693681,88.787,88.726,3.18879623]
[1772728590377,3.38693681,88.777,88.728,3.18879623]
[1772728591369,11.2640519,88.778,88.728,3.18879623]
[1772728591790,3.38693681,88.777,88.728,3.18879623]
[1772728592474,3.38693681,88.773,88.721,11.2712757]
[1772728592879,39.42506983,88.776,88.713,3.18879623]
[1772728592880,3.38693681,88.767,88.713,3.18879623]
[1772728593077,3.38693681,88.763,88.713,3.18879623]
[1772728593280,3.38693681,88.775,88.713,3.18879623]
[1772728593486,3.38693681,88.775,88.716,0.28432314]
[1772728593794,3.38693681,88.775,88.719,3.18879623]
[1772728594093,0.2,88.8,88.726,0.14216157]
[1772728594094,14.64883218,88.795,88.726,0.14216157]
[1772728594277,14.64883218,88.795,88.739,3.18879623]
[1772728594472,14.64883218,88.795,88.73,0.28432314]
[1772728594473,11.26138807,88.799,88.746,3.18879623]